Cogmind - Beta 13 @@@ ROGUE MODE // 2024.04.09 @ 21:21:06 Player: sick0r Result: Destroyed by G-34 Mercenary with Small Laser Performance ------------- Evolutions (1) 500 Regions Visited (2) 400 Robots Destroyed (68) 340 Value Destroyed (1548) 1548 Prototype IDs (7) 140 Alien Tech Used (0) 0 Bonus (16) 16 TOTAL SCORE: 2944 Bonus ------- High Alert Combat Kills 16 Cogmind --------- Core Integrity 0/400 Matter 290/300 Energy 125/125 System Corruption 11% Temperature Cool (6) Movement Rolling (135) Ox3 Location -9/Materials Parts ------- > --- POWER (1) -------- Light Ion Engine > --- PROPULSION (3) --- Armored Wheel Armored Wheel > --- UTILITY (3) ------ Huge Storage Unit Light Armor Plating > --- WEAPON (2) ------- Improved EM Shotgun Improved Medium Laser > --- INVENTORY (25) --- Light Treads Light Treads Light Treads Armored Wheel Heat Sink Huge Storage Unit Large Battery (200) High-capacity Matter Pod (200) Power Shielding Propulsion Shielding Utility Shielding Shield Generator Hacking Suite Improved Medium Laser Ion Cannon Grenade Launcher Peak State ------------ > --- POWER ------------ Light Ion Engine > --- PROPULSION ------- Compact Wheel Armored Wheel Armored Wheel > --- UTILITY ---------- Huge Storage Unit Signal Interpreter Light Armor Plating > --- WEAPON ----------- Improved Medium Laser Ion Cannon > --- INVENTORY -------- Light Treads Light Treads Armored Wheel Armored Wheel Heat Sink Large Storage Unit Large Storage Unit Large Storage Unit Large Battery High-capacity Matter Pod Power Shielding Power Shielding Propulsion Shielding Utility Shielding Light Armor Plating Light Armor Plating Spread Laser Improved Medium Laser Improved Medium Laser Improved Medium Laser Ion Cannon Ion Cannon Ion Cannon Light Cannon Grenade Launcher [Rating: 19] Favorites ----------- Power Ion Engine Engine Ion Engine Propulsion Compact Wheel Treads Light Treads Wheel Compact Wheel Flight Unit Improved Flight Unit Utility Huge Storage Unit Storage Huge Storage Unit Processor Signal Interpreter Protection Light Armor Plating Weapon Spread Laser Energy Gun Spread Laser Energy Cannon Ion Cannon Ballistic Gun Assault Rifle Ballistic Cannon Light Cannon Launcher Grenade Launcher Build | -11 -10 -9 ------- Run | Yrd Mat Mat Slots Evolved 2 | . . 2 Power . | . . . Propulsion 1 | . . 1 Utility 1 | . . 1 Weapon . | . . . Parts Attached 46 | 7 15 24 Power 8 | 1 2 5 Engine 8 | 1 2 5 Core . | . . . Reactor . | . . . Propulsion 12 | 3 3 6 Treads 1 | 1 . . Leg . | . . . Wheel 10 | 2 3 5 Hover . | . . . Flight 1 | . . 1 Utility 10 | 1 4 5 Device . | . . . Storage 3 | 1 2 . Processor 1 | . 1 . Hackware . | . . . Protection 6 | . 1 5 Artifact . | . . . Weapon 16 | 2 6 8 Energy Gun 8 | 1 2 5 Energy Cannon 1 | . . 1 Ballistic Gun 3 | 1 2 . Ballistic Cannon 2 | . . 2 Launcher 2 | . 2 . Special Weapon . | . . . Impact Weapon . | . . . Slashing Weapon . | . . . Piercing Weapon . | . . . Special Melee Weapon . | . . . Unidentified Prototypes 3 | . 1 2 Parts Lost 19 | . 6 13 Power 4 | . 1 3 Propulsion 4 | . 2 2 Utility 5 | . 1 4 Weapon 6 | . 2 4 Highest Loss Streak 6 | . 4 6 To Critical Strikes . | . . . Average Slot Usage (%) 93 | . 92 93 Engine 11 | . 14 9 Wheel 27 | . 25 30 Storage 12 | . 15 11 Processor 6 | . 2 10 Protection 8 | . 6 9 Energy Gun 18 | . 20 17 Energy Cannon 1 | . . 2 Ballistic Gun 3 | . 6 . Ballistic Cannon 1 | . . 2 Naked Turns . | . . . Heaviest Build 95 | 13 92 95 Greatest Support 44 | 20 32 44 Greatest Overweight (x) 31 | 1 3 31 Average Overweight (x) 1 | . 1 2 Largest Inventory Capacity 25 | 8 25 25 Average Capacity 22 | 7 19 25 Most Carried 25 | 8 25 25 Average Carried 18 | 5 16 20 Final Capacity 25 | 8 25 25 Final Carried 24 | 6 24 16 Class Distribution -------------------- 100% | Mutant Dominant Class ---------------- Mutant | -10/Materials Mutant | -9/Materials Resources | -11 -10 -9 ----------- Run | Yrd Mat Mat Matter Collected 1249 | 249 502 498 Remotely . | . . . Salvage Created 1680 | . 718 962 Parts 133 | . 66 67 Haulers Intercepted 1 | . . 1 Recyclers Shooed 2 | . 2 . Parts Field Recycled . | . . . Retrieved Matter . | . . . Parts Self-Destructed . | . . . Prevented . | . . . Kills | -11 -10 -9 ------- Run | Yrd Mat Mat Combat Hostiles Destroyed 53 | . 23 30 Guns 32 | . 10 22 Cannons 5 | . . 5 AOE 16 | . 13 3 Classes Destroyed 10 | . 6 4 Builder 4 | . 3 1 Hauler 1 | . . 1 Recycler 2 | . 2 . Mechanic 1 | . 1 . Operator 1 | . . 1 Watcher 6 | . 3 3 Swarmer 21 | . 9 12 Grunt 25 | . 14 11 Brawler 1 | . . 1 Sentry 6 | . . 6 Best Kill Streak 15 | . 15 8 Combat Bots Only 10 | . 10 6 Max Kills in Single Turn 4 | . 4 3 Gunslinging . | . . . Exploded 3 | . 3 3 Melee . | . . . Uniques/NPCs Destroyed . | . . . Combat | -11 -10 -9 -------- Run | Yrd Mat Mat Hostile Shots Fired 247 | . 96 151 Missed 53 | . 21 32 Damage Taken 2728 | . 923 1805 Core 626 | . 224 402 Absorbed by Shields . | . . . Regen/Repaired (Parts) 179 | . . 179 Core Remaining (%) 55 | 100 10 . Volleys Fired 141 | . 59 82 Largest 2 | . 2 2 Hottest 121 | . 121 121 Shots Fired 265 | . 112 153 Gun 219 | . 99 120 Cannon 33 | . . 33 Launcher 13 | . 13 . Special . | . . . Kinetic 60 | . 38 22 Thermal 187 | . 61 126 Explosive 13 | . 13 . Electromagnetic 5 | . . 5 Robot Hit Streak 15 | . 11 15 Robot Miss Streak 12 | . 7 12 Penetration Max . | . . . Secondary Targets 6 | . 2 4 Max Gunslinging Chain 1 | . 1 1 Shots Hit Robots 171 | . 62 109 Core Hits 161 | . 57 104 Critical Kills 1 | . 1 . Critical Parts Destroyed . | . . . Critical Strikes 5 | . 1 4 Burn 2 | . . 2 Destroy 1 | . 1 . Blast 2 | . . 2 Melee Attacks . | . . . Impact . | . . . Slashing . | . . . Piercing . | . . . Sneak Attacks . | . . . Combat Hostiles . | . . . Follow-up Attacks . | . . . Damage Inflicted 3613 | . 1744 1869 Guns 2067 | . 667 1400 Cannons 389 | . . 389 Explosions 1157 | . 1077 80 Melee . | . . . Ramming . | . . . Kinetic 502 | . 273 229 Thermal 1970 | . 394 1576 Explosive 1077 | . 1077 . Electromagnetic 64 | . . 64 Impact . | . . . Slashing . | . . . Piercing . | . . . Highest Corruption 11 | . 8 11 Average Corruption 7 | . 8 3 Corruption Purged . | . . . Corruption Blocked . | . . . Effects 41 | . 37 4 Message Errors 11 | . 10 1 Matter Fused 9 | . 8 1 Heat Flow Errors 5 | . 4 1 Energy Discharges 6 | . 6 . Parts Fused 1 | . 1 . Data Loss (minor) 5 | . 4 1 Data Loss (major) 1 | . 1 . Misfires 1 | . 1 . Weapon Failures 2 | . 2 . Overload Shots . | . . . Overflow Damage 27 | . 8 19 Projectiles . | . . . Explosions 27 | . 8 19 Melee . | . . . Knockbacks 3 | . . 3 Impact . | . . . Kinetic 3 | . . 3 Secondary . | . . . Self-Inflicted Damage 53 | . 13 40 Shots 2 | . 1 1 Rammed . | . . . Targets Rammed . | . . . Kicked . | . . . Crushed . | . . . Highest Temperature 688 | . 241 688 Average Temperature 133 | . 67 164 Received Heat Transfer 678 | . 210 468 Effects 19 | . . 19 Shutdowns 1 | . . 1 Energy Bleed 6 | . . 6 Interference 5 | . . 5 Matter Decay 1 | . . 1 Damage (minor) 2 | . . 2 Damage (major) 2 | . . 2 Damage (core) 2 | . . 2 Siege Activations . | . . . Robots Corrupted . | . . . Combat Hostiles . | . . . Parts Fried . | . . . Impact Corruptions . | . . . Robots Melted . | . . . Combat Hostiles . | . . . Parts Melted . | . . . Heat Transferred 3514 | . 817 2697 Parts Sabotaged . | . . . Parts Stolen . | . . . Parts Stripped . | . . . Power Chain Reactions 1 | . . 1 Alert | -11 -10 -9 ------- Run | Yrd Mat Mat Peak Influence 455 | . 455 352 Initial . | . . . Average 135 | . 159 118 Maximum Alert Level 2 | . 2 1 Low Security (%) 69 | 100 60 75 Level 1 22 | . 21 24 Level 2 8 | . 17 . Level 3 . | . . . Level 4 . | . . . Level 5 . | . . . High Security . | . . . Max Security . | . . . Squads Dispatched 9 | . 6 3 Investigation 4 | . 4 . Extermination . | . . . Reinforcement 5 | . 2 3 Assault . | . . . Garrison . | . . . Intercept . | . . . Searches Triggered . | . . . Construction Impeded 1 | . . 1 Haulers Reinforced . | . . . Active Scanning Responses . | . . . Cargo Convoy Interrupts . | . . . Stealth | -11 -10 -9 --------- Run | Yrd Mat Mat Distress Signals 4 | . 3 1 Communications Jammed . | . . . Distress Signals . | . . . Times Spotted 72 | . 30 42 Peak Tracking Total 7 | . 6 7 Tactical Retreats 2 | . 1 1 Traps | -11 -10 -9 ------- Run | Yrd Mat Mat Traps Triggered 3 | . 3 . Indirectly . | . . . Trap Hack Attempts . | . . . Triggered . | . . . Disarmed . | . . . Reprogrammed . | . . . Reused . | . . . Traps Extracted . | . . . Installed . | . . . Triggered . | . . . Machines | -11 -10 -9 ---------- Run | Yrd Mat Mat Machines Disabled 1 | . 1 . Max in Single Turn 1 | . 1 . Machines Repaired . | . . . Machines Dismantled . | . . . Machines Sabotaged . | . . . Overloaded Fab Kills . | . . . Hacking | -11 -10 -9 --------- Run | Yrd Mat Mat Machines Accessed 13 | . 5 8 Terminals 9 | . 5 4 Fabricators . | . . . Repair Stations 2 | . . 2 Recycling Units 1 | . . 1 Scanalyzers 1 | . . 1 Garrison Access . | . . . Total Hacks 38 | . 15 23 Successful 28 | . 9 19 Failed 10 | . 6 4 Catastrophic . | . . . Database Lockouts . | . . . Manual . | . . . Terminals 23 | . 15 8 Fabricators . | . . . Repair Stations 10 | . . 10 Recycling Units 3 | . . 3 Scanalyzers 2 | . . 2 Garrison Access . | . . . Terminal Hacks 15 | . 9 6 Record 1 | . 1 . Prototype ID Bank 3 | . 2 1 Emergency Access Points 1 | . . 1 Terminal Index 1 | . 1 . Alert Level 3 | . 2 1 Unreport Threat 2 | . 2 . Hauler Manifests 1 | . . 1 Zone Layout 3 | . 1 2 Fabricator Hacks . | . . . Repair Station Hacks 8 | . . 8 Scan Component 5 | . . 5 Repair 3 | . . 3 Recycling Unit Hacks 3 | . . 3 Recycle Component 1 | . . 1 Process 1 | . . 1 Retrieve Matter 1 | . . 1 Scanalyzer 2 | . . 2 Insert Component 1 | . . 1 Analyze 1 | . . 1 Garrison Access Hacks . | . . . Unauthorized Hacks . | . . . Terminals . | . . . Fabricators . | . . . Repair Stations . | . . . Recycling Units . | . . . Scanalyzers . | . . . Garrison Access . | . . . Data Cores Recovered . | . . . Used . | . . . Hacking Detections 11 | . 5 6 Full Trace Events 4 | . 1 3 Feedback Events 1 | . . 1 Corruption 1 | . . 1 Feedback Blocked . | . . . Robot Schematics Acquired . | . . . Robots Built . | . . . Authchips . | . . . Time . | . . . Total Robot Build Rating . | . . . Part Schematics Acquired 1 | . . 1 Parts Built . | . . . Authchips . | . . . Time . | . . . Total Part Build Rating . | . . . Parts Repaired 3 | . . 3 Time 84 | . . 84 Parts Recycled 1 | . . 1 Recycled Matter 389 | . . 389 Retrieved Matter 556 | . . 556 Retrieved Components . | . . . Parts Scanalyzed 1 | . . 1 Part Schematics Acquired 1 | . . 1 Parts Damaged . | . . . Bothacking | -11 -10 -9 ------------ Run | Yrd Mat Mat Used RIF Installer . | . . . Robots Hacked . | . . . Non-combat . | . . . Combat . | . . . Robot Hacks Applied . | . . . Relay Couplers Released . | . . . Fabnet Peak Effective % . | . . . Robots Rewired . | . . . Allies Hacked . | . . . Hacks Repelled . | . . . Allies | -11 -10 -9 -------- Run | Yrd Mat Mat Total Allies . | . . . Largest Group . | . . . Highest-Rated Group . | . . . Highest-Rated Ally . | . . . Total Orders . | . . . Ally Attacks . | . . . Total Damage . | . . . Kills . | . . . Allies Corrupted . | . . . Allies Melted . | . . . Intel | -11 -10 -9 ------- Run | Yrd Mat Mat Robot Analysis Total . | . . . Derelict Logs Recovered . | . . . Drone Launches . | . . . Drone Recoveries . | . . . Exploration | -11 -10 -9 ------------- Run | Yrd Mat Mat Turns Passed 3591 | 61 1661 1869 Spaces Moved 2102 | 49 1085 968 Core 24 | 22 . 2 Treads 1 | 1 . . Legs . | . . . Wheels 2077 | 26 1085 966 Hover . | . . . Flight . | . . . Fastest Speed 50 | 50 95 120 Average Speed 122 | 87 117 128 Slowest Speed 1600 | 160 130 1600 Overloaded Moves . | . . . Propulsion Burnouts . | . . . Robots Hopped . | . . . Cave-ins Triggered 2 | . 1 1 Exploration Rate (%) 54 | 3 96 63 Regions Visited 2 Branch Regions . Pre-discovered Areas . | . . . Known Exits Taken 1 | . 1 . Unknown Exits Taken 1 | 1 . . Scrap Searched . | . . . Spaces Dug . | . . . Terrain Destroyed 80 | . 73 7 Melee . | . . . Projectile 3 | . . 3 AOE 77 | . 73 4 Terrain Rammed . | . . . Walls Destroyed . | . . . Machines Disabled . | . . . Actions | -11 -10 -9 --------- Run | Yrd Mat Mat Total 2860 | 65 1354 1441 Wait 497 | . 167 330 Move 2100 | 48 1084 968 Hop . | . . . Pick Up 59 | 10 27 22 Fast Attach 3 | 2 1 . Attach 29 | 4 6 19 Detach 2 | . . 2 Swap 14 | 1 8 5 Drop 15 | . 2 13 Fire 141 | . 59 82 Melee . | . . . Ram . | . . . Kick . | . . . Crush . | . . . Escape Stasis . | . . . Rewire . | . . . Trap . | . . . Miscellaneous . | . . . Route ------- -11/Scrapyard -10/Materials (discovered 4 exits: *Mat x3 / *Min) -9/Materials (discovered 3 exits: *Mat x2 / *Min) History --------- Turn | Location | Event 14 | -11/Scrapyard | Discovered new exit (range 15) 62 | -11/Scrapyard | Entered Materials 174 | -10/Materials | Destroyed 8 combat bots 210 | -10/Materials | Discovered new exit (range 14) 311 | -10/Materials | Build established: Mutant 539 | -10/Materials | Core integrity fell below 50% 577 | -10/Materials | Crushed by falling debris 582 | -10/Materials | Discovered new exit (range 14) 611 | -10/Materials | Destroyed 10 combat bots 618 | -10/Materials | Lost 4 parts (1p1n1u1w) 885 | -10/Materials | Core integrity fell below 20% 904 | -10/Materials | Discovered new exit (range 6) 1027 | -10/Materials | Discovered new exit (range 8) 1484 | -10/Materials | Identified exit to Materials 1648 | -10/Materials | Identified exit to Mines 1723 | -10/Materials | Entered another Materials area 1723 | -9/Materials | Evolved 2 slots: Propulsion x1, Utility x1 1922 | -9/Materials | Repaired Lgt. Armor Plating 2267 | -9/Materials | Discovered new exit (range 11) 2536 | -9/Materials | Repaired Lgt. Ion Engine 2569 | -9/Materials | Repaired Spread Laser 2672 | -9/Materials | Discovered new exit (range 5) 2677 | -9/Materials | Identified exit to Materials 2984 | -9/Materials | Core integrity fell below 50% 3048 | -9/Materials | Lost 3 parts (2n1w) 3321 | -9/Materials | Discovered exit to Materials (range 11) 3375 | -9/Materials | Identified exit to Mines 3547 | -9/Materials | Core integrity fell below 20% 3556 | -9/Materials | Crushed by falling debris 3556 | -9/Materials | System corruption reached 10% 3591 | -9/Materials | Lost 6 parts (1p2u3w) 3592 | -9/Materials | Destroyed by G-34 Mercenary with Small Laser Last Messages --------------- Lgt. Cannon destroyed. U-05 Engineer lays Concrete. B-36 Bruiser destroyed. Switching to secondary target: G-34 Mercenary. G-34 Mercenary shuts down. System corrupted: Heat flow error (+173). U-05 Engineer lays Concrete. U-05 Engineer builds a Wall. Acquired 31 matter. U-05 Engineer lays Concrete. U-05 Engineer builds a Wall. U-05 Engineer lays Concrete. U-05 Engineer builds a Wall. Acquired Lgt. Ion Engine. Acquired 7 matter. U-05 Engineer lays Concrete. Acquired 3 matter. U-05 Engineer lays Concrete. G-34 Mercenary reactivates. System corrupted: Matter fused (-10). Map ----- +----------------------------------------------------+ | ???????????????????????????????????? | | ???????????????????????????????????? | | ???????????????????????????????????? | | ???????????????????????????????????? | | ???????????????????????????????# | | ???????????????????????????????##### | | ??????????????????????????????##### | | ?????????????????????????????? + | | ?????????????????????????????? #### | | ?????????????????????????????? #??## | | ?????????????????????????????? ##### | | ?????????????????????????????? # | | ??????????????########???????? # | | ?????????????? ! ???????? # | | ?????????????? ????????? # | | ??????????????# T ????????? # | | ??????????????# ??????????## | | ??????????????+ ??????????? # | | ??????????????# ??????????? # | | ??????????????# ???????????? ##### | | ??????????????# #???????????? #???# | | ??????????????# #???????????? #???# | | ?????????##+### #???????????? ##### | | ?????????# g #???????????? # | | ?????????# =%%#???????????? # | | ?????????# @### =#???????????? # | | ?????????# #?#[ #????????????## | | ?????????+ #?#%[##????????????# | | ?????????# ###=%##????????????# | | ?????????# ###=%##????????????# | | ????????? #% = #??########### | | ????????? # #### ###### | | ????????# # + "" #????# | | ????????# # #### ""S ###### | | ????????## #######??# "" + | | ?????????# #????????# ! #### | | ?????????+ +????????#[ """ #??# | | ?????????# #????????# """ #??# | | ?????????# #????????# ] """ #### | | ?????????# #????????# ## | | ?????????# ############+####### | | ?????????# ## """ | | ?????????# ## < "T" | | ?????????# ## ^"" | | ? "??????# ############# "" | | # """????# #???# # "" | | ?? ??+ #???# """" # "" | | ??""""" # ##### """" + % "" | | ??""""" + + """" # "" | | ??""""" #+###### # %! "" | +----------------------------------------------------+ Best States ------------- Heat Dissipation 28 Energy Generation 10 Energy Capacity 250 Matter Stores 300 Matter Capacity 300 Sight Range 16 Terrain Scan Density 10 Armor Coverage 150 Propulsion Shielding 33 Evasion (%) 50 Item Schematics ----------------- Cld. Ion Engine | -9/Materials | Scanalyzed Robot Schematics ------------------ None Fabricated ------------ Nothing Alien Tech Used ----------------- None Achievements -------------- None Challenges ------------ None Game ------ Seed SpacefoldSmallFacilitator Manual? 0 Play Time 00:44:20 Cumulative 6.8 hours Start 2024.04.09 @ 20:35:25 End 2024.04.09 @ 21:21:06 Sessions 1 Manual Loads 0 Difficulty Rogue Special Mode None Game No. 8 Rogue 8 Adventurer 0 Explorer 0 Win Type - Total 0 Types 0/0/0/0/0/0/0/0/0 Lore% 3 Gallery% 10 Achievement% 100 Wizard Run 0 Options --------- Layout 1 ASCII 0 Keyboard 0 Movement Mouse Keybinds 0 Fullscreen 1 Font 24/Smallcaps Map View 50x35 Zoom Use 0% Tactical HUD 0 Map Filters NONE Filters NONE Steam 1 RUN: 3f5850de-c3ab-47c8-9619-4470d12af925